bitfinex-derivatives/quotes_ETHF0:USTF0_20230105
["timestamp","ask_amount","ask_price","bid_price","bid_amount"]
[1672905540990,2.39848362,1250.5,1250.4,12.42017575]
[1672905541201,5.60628362,1250.5,1250.4,12.42017575]
[1672905543198,8.60401292,1250.5,1250.4,12.42017575]
[1672905543410,5.60628362,1250.5,1250.4,12.42017575]
[1672905545938,2.39848362,1250.5,1250.4,12.42017575]
[1672905546251,5.60628362,1250.5,1250.4,12.42017575]
[1672905550459,2.39848362,1250.5,1250.4,12.42017575]
[1672905550663,5.60628362,1250.5,1250.4,12.42017575]
[1672905551923,2.39848362,1250.5,1250.4,12.42017575]
[1672905552239,4.1973773,1250.5,1250.4,9.42232015]
[1672905552449,4.1973773,1250.5,1250.4,12.42232015]
[1672905553189,1.79889368,1250.5,1250.4,12.42232015]
[1672905553711,2.99800657,1250.5,1250.4,12.42232015]
[1672905554125,2.99800657,1250.5,1250.4,16.02088603]
[1672905555285,2.99800657,1250.5,1250.4,12.42232015]
[1672905555706,2.99800657,1250.5,1250.4,16.02088603]
[1672905555918,2.99800657,1250.5,1250.4,12.42232015]
[1672905556861,1.79889368,1250.5,1250.4,12.42232015]
[1672905557062,2.99762845,1250.5,1250.4,12.42232015]
[1672905563066,1.79889368,1250.5,1250.4,12.42232015]
[1672905563283,1.79889368,1250.5,1250.4,15.41879943]
[1672905564651,1.79889368,1250.5,1250.4,12.42232015]
[1672905565176,2.99745056,1250.5,1250.4,12.42232015]
[1672905566643,1.79775698,1250.7,1250.5,12.18594944]
[1672905566959,1.79775698,1250.7,1250.6,20.2319838]
[1672905569171,4.79775698,1250.8,1250.6,20.2319838]
[1672905569377,1.79775698,1250.8,1250.7,6.8104673]
[1672905572322,1.79775698,1250.8,1250.7,5.39314715]
[1672905573162,1.79775698,1250.8,1250.7,7.18696711]
[1672905574532,1.79775698,1250.8,1250.7,4.79381996]
[1672905575369,1.79775698,1250.8,1250.7,1.79381996]
[1672905575577,1.79775698,1250.8,1250.7,4.79381996]
[1672905576108,1.79775698,1250.8,1250.7,2.98969444]
[1672905576317,1.79775698,1250.8,1250.7,5.98969444]
[1672905576528,4.79775698,1250.8,1250.7,2.98969444]
[1672905576737,1.79775698,1250.8,1250.7,5.98969444]
[1672905577265,1.79775698,1250.8,1250.7,2.98969444]
[1672905577474,4.79775698,1250.8,1250.7,2.98969433]
[1672905578948,3.0,1250.8,1250.7,2.98969433]
[1672905579157,1.79452462,1250.8,1250.7,5.98969433]
[1672905579370,4.79452462,1250.8,1250.7,2.98969433]
[1672905579678,8.00232462,1250.8,1250.7,2.98969433]
[1672905580207,4.79452462,1250.8,1250.7,2.98969433]
[1672905580630,4.79452462,1250.8,1250.7,5.98969433]
[1672905580837,8.00232462,1250.8,1250.7,2.98969433]
[1672905581472,8.00232462,1250.8,1250.7,1.79381996]
[1672905581894,8.00232462,1250.8,1250.7,2.98972111]
[1672905582208,5.00232462,1250.8,1250.7,4.79381996]
[1672905583257,7.3950406,1250.8,1250.7,1.79381996]
[1672905583468,7.3950406,1250.8,1250.7,4.79381996]
[1672905583881,4.1872406,1250.8,1250.7,4.79381996]
[1672905584092,5.00232462,1250.8,1250.7,1.79381996]
[1672905584309,5.00232462,1250.8,1250.7,4.79381996]
[1672905585143,5.00232462,1250.8,1250.7,1.79381996]
[1672905585349,7.3950406,1250.8,1250.7,4.79381996]
[1672905585567,7.3950406,1250.8,1250.7,1.79381996]
[1672905587265,7.39558383,1250.8,1250.7,4.79381996]
[1672905587464,7.39558383,1250.8,1250.7,1.79381996]
[1672905587786,4.18778383,1250.8,1250.7,4.79381996]
[1672905588099,7.39558383,1250.8,1250.7,4.79381996]
[1672905588302,7.39558383,1250.8,1250.7,1.79381996]
[1672905588518,4.18778383,1250.8,1250.7,1.79381996]
[1672905588729,7.39558383,1250.8,1250.7,1.79381996]
[1672905589142,5.60051598,1250.8,1250.7,1.79381996]
[1672905589668,4.18807749,1250.8,1250.7,4.79381996]
[1672905589880,5.60051598,1250.8,1250.7,1.79381996]
[1672905590089,5.60051598,1250.8,1250.7,4.79381996]
[1672905590409,7.39587825,1250.8,1250.7,4.79381996]
[1672905590937,7.39587825,1250.8,1250.7,7.18696711]
[1672905591463,4.18807825,1250.8,1250.7,7.18696711]
[1672905591665,7.39587825,1250.8,1250.7,7.18696711]
[1672905591877,7.39587825,1250.8,1250.7,4.18696711]
[1672905593248,5.60051598,1250.8,1250.7,7.18696711]
[1672905593462,5.60051598,1250.8,1250.7,5.39314715]
[1672905593463,7.39631036,1250.8,1250.7,5.39314715]
[1672905594196,7.39631036,1250.8,1250.7,2.39314715]
[1672905594406,5.60051598,1250.8,1250.7,4.18823592]
[1672905595666,2.39271598,1250.8,1250.7,4.18823592]
[1672905595877,5.60051598,1250.8,1250.7,7.18823592]
[1672905596088,5.60051598,1250.8,1250.7,4.18823592]
[1672905596502,5.60051598,1250.8,1250.7,7.18823592]
[1672905596820,5.60051598,1250.8,1250.7,7.18833173]
[1672905597039,5.60051598,1250.8,1250.7,5.39314715]
[1672905597777,2.39271598,1250.8,1250.7,5.39314715]
[1672905598086,5.60051598,1250.8,1250.7,5.39314715]
[1672905598304,2.39271598,1250.8,1250.7,5.39314715]
[1672905598717,1.79606527,1250.8,1250.7,9.80516492]
[1672905599235,4.18878125,1250.9,1250.7,16.15503474]
[1672905599453,1.79606527,1250.9,1250.8,16.81511787]
[1672905599767,1.79606527,1250.9,1250.8,19.80990706]
[1672905600185,2.39271598,1251.0,1250.8,13.005]
[1672905600398,3.2078,1251.1,1250.9,3.0]
[1672905605655,3.0,1251.0,1250.8,13.005]
[1672905605865,3.0,1251.0,1250.9,3.0]
[1672905606071,6.2078,1251.0,1250.9,3.0]
[1672905606284,3.2078,1251.0,1250.9,3.0]
[1672905606811,3.2078,1251.0,1250.8,13.005]
[1672905607023,3.0,1250.9,1250.8,13.005]
[1672905607549,3.0,1250.9,1250.8,5.0]
[1672905608286,3.0,1250.9,1250.6,7.81487446]
[1672905608498,3.2078,1250.8,1250.6,2.81487446]
[1672905608708,0.5,1250.7,1250.6,2.81487446]
[1672905609228,3.2078,1250.8,1250.6,2.81487446]
[1672905609438,0.5,1250.7,1250.6,2.81487446]
[1672905610392,0.5,1250.7,1250.6,0.31487446]
[1672905610913,3.2078,1250.8,1250.6,0.31487446]
[1672905611225,12.1864,1250.7,1250.1,18.958]
[1672905611437,3.2078,1250.4,1250.1,26.963]
[1672905611649,3.2078,1250.4,1250.2,3.0]
[1672905612808,3.2078,1250.4,1250.3,4.41003486]
[1672905615006,5.00342138,1250.4,1250.3,3.81060023]
[1672905615428,5.00342138,1250.4,1250.3,2.3933567]
[1672905615753,5.00342138,1250.4,1250.3,3.8106513]
[1672905616270,5.00342138,1250.4,1250.2,8.38614803]
[1672905616474,5.00342138,1250.4,1250.3,1.79499154]
[1672905616679,5.00342138,1250.4,1250.3,2.99097081]
[1672905616899,8.00342138,1250.4,1250.3,2.99097081]
[1672905617102,8.00342138,1250.4,1250.3,1.19597927]
[1672905617523,10.39758322,1250.4,1250.3,1.19597927]
[1672905618270,8.00342138,1250.4,1250.3,1.19597927]
[1672905619212,3.2078,1250.4,1250.3,1.19597927]
[1672905619421,3.2078,1250.4,1250.3,2.99097081]
[1672905620581,3.2078,1250.4,1250.3,1.19597927]
[1672905621001,3.2078,1250.4,1250.3,2.99097081]
[1672905622051,5.00342138,1250.4,1250.2,2.99097081]
[1672905622261,3.0,1250.3,1250.2,2.99097081]
[1672905622470,3.0,1250.3,1250.2,1.19597927]
[1672905622677,3.0,1250.3,1250.2,2.99097081]
[1672905623519,3.0,1250.3,1250.2,1.19597927]
[1672905623937,2.68504192,1250.3,1250.2,1.19419244]
[1672905624148,2.68504192,1250.3,1250.2,4.19419244]
[1672905624776,2.68504192,1250.3,1250.2,1.19419244]
[1672905625939,3.2078,1250.4,1250.2,1.19419244]
[1672905626149,3.2078,1250.4,1250.2,4.19419244]
[1672905626355,3.0,1250.3,1250.2,1.19419244]
[1672905629098,3.2078,1250.4,1250.2,1.19419244]
[1672905630255,3.2078,1250.4,1250.2,4.19419244]
[1672905630982,3.2078,1250.4,1250.2,1.19419244]
[1672905632244,3.0,1250.3,1250.1,2.9854811]
[1672905632460,3.2078,1250.2,1250.1,1.19419244]
[1672905632674,3.2078,1250.2,1250.1,2.9854811]
[1672905632980,3.2078,1250.2,1250.1,1.19419244]
[1672905634249,3.2078,1250.2,1250.1,5.9854811]
[1672905634978,3.2078,1250.2,1250.1,4.79128866]
[1672905635392,3.2078,1250.4,1250.1,4.79128866]
[1672905635611,3.7078,1250.6,1250.3,2.98426615]
[1672905635820,3.7078,1250.6,1250.4,3.0]
[1672905636241,3.7078,1250.6,1250.4,4.19297749]
[1672905636761,3.7078,1250.6,1250.4,3.0]
[1672905637497,3.7078,1250.6,1250.4,4.19297749]
[1672905638344,3.2078,1250.6,1250.4,4.19297749]
[1672905638659,3.2078,1250.6,1250.4,5.98426615]
[1672905639492,1.79562138,1250.7,1250.5,1.19297749]
[1672905639698,4.18978322,1250.9,1250.6,6.19297749]
[1672905639909,1.79562138,1250.9,1250.6,7.98426615]
[1672905640334,1.79562138,1250.9,1250.7,4.19297749]
[1672905640551,4.79562138,1250.9,1250.7,3.0]
[1672905641916,7.39758322,1251.0,1250.7,4.19297749]
[1672905642121,10.39758322,1251.0,1250.7,4.19297749]
[1672905642329,3.0,1250.9,1250.7,4.19297749]
[1672905642547,4.79562138,1250.9,1250.7,4.19297749]
[1672905642971,4.79562138,1250.9,1250.7,3.0]
[1672905643800,5.00342138,1250.8,1250.6,1.19297749]
[1672905644016,3.0,1250.7,1250.6,1.19297749]
[1672905644227,3.0,1250.7,1250.5,2.98426615]
[1672905644441,3.0,1250.7,1250.6,4.19297749]
[1672905644855,5.00342138,1250.8,1250.6,4.19297749]
[1672905645062,5.00342138,1250.8,1250.6,9.19297749]
[1672905645909,5.00342138,1250.8,1250.6,4.19297749]
[1672905646330,5.00342138,1250.8,1250.6,5.98426615]
[1672905647062,5.00342138,1250.8,1250.6,4.19297749]
[1672905647805,3.0,1250.7,1250.6,4.19297749]
[1672905648539,3.0,1250.7,1250.6,1.19297749]
[1672905648749,4.79562138,1250.7,1250.5,1.19297749]
[1672905648957,4.79562138,1250.7,1250.5,2.98426615]
[1672905650226,3.2078,1250.6,1250.5,2.98426615]
[1672905650539,5.00342138,1250.6,1250.5,1.19297749]
[1672905651802,5.00342138,1250.6,1250.4,12.87345125]
[1672905652114,5.00342138,1250.6,1250.5,1.19297749]
[1672905655372,7.39758322,1250.6,1250.4,3.08216259]
[1672905655687,2.29562138,1250.5,1250.4,3.08216259]
[1672905660423,2.29562138,1250.5,1250.4,1.8891851]
[1672905661570,5.50342138,1250.5,1250.4,3.08216259]
[1672905661785,5.50342138,1250.5,1250.4,1.8891851]
[1672905661997,5.50342138,1250.5,1250.4,3.08216259]
[1672905662206,5.50342138,1250.5,1250.4,1.8891851]
[1672905662738,5.00342138,1250.5,1250.4,1.8891851]
[1672905662949,5.00342138,1250.5,1250.4,3.08216259]
[1672905664103,5.00342138,1250.5,1250.4,1.8891851]
[1672905664635,5.00342138,1250.5,1250.4,3.08216259]
[1672905666629,1.79562138,1250.5,1250.4,3.08216259]
[1672905666941,5.00342138,1250.5,1250.4,3.08216259]
[1672905669360,1.79562138,1250.5,1250.4,3.08216259]
[1672905669568,5.00342138,1250.5,1250.4,3.08216259]
[1672905669990,5.60196184,1250.5,1250.4,1.8891851]
[1672905670198,8.60196184,1250.5,1250.4,1.8891851]
[1672905670613,11.59466414,1250.5,1250.4,1.8891851]
[1672905671457,9.2005023,1250.5,1250.4,1.8891851]
[1672905671881,17.2055023,1250.5,1250.4,1.8891851]
[1672905672095,14.2128,1250.5,1250.4,1.8891851]
[1672905672713,17.20131689,1250.5,1250.4,1.8891851]
[1672905673660,9.19631689,1250.5,1250.4,1.8891851]
[1672905674406,7.39130522,1250.5,1250.4,1.8891851]
[1672905674603,7.39130522,1250.5,1250.4,4.87345125]
[1672905674604,1.79309937,1250.5,1250.4,4.87345125]
[1672905674927,3.0,1250.5,1250.4,3.68047376]
[1672905675138,4.79309937,1250.5,1250.4,4.87600117]
[1672905675353,6.2078,1250.5,1250.4,3.68047376]
[1672905675555,8.00089937,1250.5,1250.4,4.87613298]
[1672905675874,8.00089937,1250.5,1250.4,3.08484432]
[1672905677445,5.00089937,1250.5,1250.4,3.08484432]
[1672905679870,8.00089937,1250.5,1250.4,3.08484432]
[1672905680606,10.39128891,1250.5,1250.4,3.08484432]
[1672905681231,8.59818954,1250.5,1250.4,3.08484432]
[1672905681755,5.39038954,1250.5,1250.4,3.08484432]
[1672905681964,10.39210913,1250.5,1250.4,3.08484432]
[1672905682488,5.98851689,1250.6,1250.4,10.69963233]
[1672905682489,1.79490832,1250.6,1250.4,10.69963233]
[1672905682704,4.79490832,1250.6,1250.5,7.1876208]
[1672905683016,4.79490832,1250.6,1250.5,5.39292617]
[1672905683226,4.79490832,1250.6,1250.5,7.18749341]
[1672905683654,4.79490832,1250.6,1250.5,4.79456724]
[1672905683850,4.79490832,1250.6,1250.5,4.18749341]
[1672905684066,3.0,1250.6,1250.5,2.99114326]
[1672905684279,4.79491698,1250.6,1250.5,1.79456724]
[1672905684490,4.79491698,1250.6,1250.5,4.79456724]
[1672905685113,4.79491698,1250.6,1250.5,7.18749341]
[1672905685646,4.79491698,1250.6,1250.5,4.18749341]
[1672905686068,4.79491698,1250.6,1250.5,4.79456724]
[1672905686278,1.79534147,1250.6,1250.5,4.79456724]
[1672905686493,4.79534147,1250.6,1250.5,4.79456724]
[1672905687329,4.79534147,1250.6,1250.5,1.79456724]
[1672905687854,4.79534147,1250.6,1250.5,4.79456724]
[1672905688380,3.0,1250.6,1250.5,4.79456724]
[1672905689323,9.19631689,1250.7,1250.5,4.79456724]
[1672905689532,9.19631689,1250.7,1250.6,1.19710631]
[1672905689735,9.19631689,1250.7,1250.6,4.19710631]
[1672905691532,9.19631689,1250.7,1250.6,1.19710631]
[1672905691954,6.19631689,1250.7,1250.6,1.19710631]
[1672905692163,3.2078,1250.7,1250.6,2.99167355]
[1672905692376,3.2078,1250.7,1250.6,5.99167355]
[1672905692583,3.2078,1250.7,1250.6,5.99141516]
[1672905692798,3.2078,1250.7,1250.6,4.79456724]
[1672905693118,3.2078,1250.7,1250.6,5.9912881]
[1672905693855,9.19631689,1250.8,1250.6,5.9912881]
[1672905694276,9.19631689,1250.8,1250.7,1.19672086]
[1672905694485,9.19631689,1250.8,1250.7,4.19672086]
[1672905695637,6.19631689,1250.8,1250.7,4.19672086]
[1672905696057,6.19631689,1250.8,1250.7,1.19672086]
[1672905696485,6.19631689,1250.8,1250.6,5.9912881]
[1672905697320,6.19631689,1250.8,1250.6,2.99091319]
[1672905697641,3.0,1250.7,1250.4,4.88009829]
[1672905697955,3.2078,1250.5,1250.4,3.08597458]
[1672905698162,3.7078,1250.5,1250.4,4.88054182]
[1672905698789,5.50270516,1250.5,1250.4,3.68375234]
[1672905701209,5.50270516,1250.5,1250.4,6.07667851]
[1672905701624,5.50270516,1250.5,1250.4,3.68375234]
[1672905701832,5.00270516,1250.5,1250.4,6.07667851]
[1672905702257,5.00270516,1250.5,1250.4,3.68375234]
[1672905702463,5.00270516,1250.5,1250.4,6.07667851]
[1672905703835,1.79490516,1250.5,1250.4,6.07667851]
[1672905704052,1.79490516,1250.5,1250.4,3.68375234]
[1672905704254,9.19936471,1250.6,1250.4,3.68375234]
[1672905704462,9.19936471,1250.6,1250.5,1.19688991]
[1672905704675,9.19936471,1250.6,1250.5,4.19688991]
[1672905704884,9.19936471,1250.6,1250.5,1.19688991]
[1672905708989,3.2078,1250.6,1250.5,2.99145715]
[1672905710563,3.2078,1250.6,1250.5,1.19688991]
[1672905710774,6.19936471,1250.6,1250.5,1.19688991]
[1672905711091,3.2078,1250.6,1250.5,1.19688991]
[1672905711301,6.19936471,1250.6,1250.5,2.99145715]
[1672905712353,8.59352214,1250.6,1250.5,2.99145715]
[1672905712562,1.7954638,1250.6,1250.5,10.39292617]
[1672905712876,2.99239959,1250.6,1250.5,11.80999922]
[1672905713087,1.7954638,1250.6,1250.5,14.80279055]
[1672905713929,1.7954638,1250.6,1250.5,11.80999922]
[1672905714565,1.7954638,1250.6,1250.5,6.80999922]
[1672905718659,2.9928178,1250.6,1250.5,9.80279055]
[1672905719501,2.9928178,1250.6,1250.5,7.40986438]
[1672905724025,2.9928178,1250.6,1250.5,4.40986438]
[1672905724341,4.18962123,1250.6,1250.5,3.81167186]
[1672905724660,4.18962123,1250.6,1250.5,2.39459881]
[1672905726235,2.39415743,1250.6,1250.5,2.39459881]
[1672905727180,4.19043461,1250.6,1250.5,2.39459881]
[1672905727393,2.39415743,1250.6,1250.5,2.39459881]
[1672905727708,2.39415743,1250.6,1250.5,4.19070642]
[1672905728233,2.39415743,1250.6,1250.5,2.39459881]
[1672905728650,5.60195743,1250.6,1250.5,2.39459881]
[1672905728861,5.60195743,1250.6,1250.5,4.19062734]
[1672905729499,6.19936471,1250.6,1250.5,2.99359113]
[1672905730758,6.19936471,1250.6,1250.5,1.1975626]
[1672905732123,2.99156471,1250.6,1250.5,1.1975626]
[1672905732436,6.19936471,1250.6,1250.5,1.1975626]
[1672905732638,3.0,1250.5,1250.4,2.99359113]
[1672905732852,5.99359683,1250.5,1250.4,2.99359113]
[1672905733066,8.38852702,1250.5,1250.4,2.99359113]
[1672905733276,5.39493019,1250.5,1250.4,2.99347731]
[1672905733701,8.38852702,1250.5,1250.4,2.99347731]
[1672905733907,5.99359683,1250.5,1250.4,2.99347731]
[1672905734436,5.99359683,1250.5,1250.4,1.19744878]
[1672905734854,5.99359683,1250.5,1250.4,2.99347731]
[1672905735173,5.99359683,1250.5,1250.4,1.19744878]
[1672905735382,8.38809155,1250.5,1250.4,2.99347731]
[1672905735584,9.20139683,1250.5,1250.4,2.99347731]
[1672905735911,11.59589003,1250.5,1250.4,2.99347731]
[1672905736115,11.59591802,1250.5,1250.4,2.99347731]
[1672905736326,8.60232119,1250.5,1250.4,2.99347731]
[1672905736538,11.59591802,1250.5,1250.4,2.99347731]
[1672905737384,8.60232119,1250.5,1250.4,2.99347731]
[1672905740960,8.60232119,1250.5,1250.4,1.79602853]
[1672905741280,8.60232119,1250.5,1250.4,2.99321834]
[1672905741485,5.39452119,1250.5,1250.4,2.99321834]
[1672905741695,8.60232119,1250.5,1250.4,2.99321834]
[1672905742006,5.39452119,1250.5,1250.4,2.99321834]
[1672905742216,8.60232119,1250.5,1250.4,2.99321834]
[1672905742431,8.60232119,1250.5,1250.4,2.99315874]
[1672905742845,8.60232119,1250.5,1250.4,1.79602853]
[1672905743155,5.00340665,1250.5,1250.4,4.19062734]
[1672905743374,5.00340665,1250.5,1250.4,2.39459881]
[1672905743584,5.00340665,1250.5,1250.4,3.81181104]
[1672905744208,5.00340665,1250.5,1250.4,3.81180396]
[1672905744423,5.00340665,1250.5,1250.4,3.81180387]
[1672905745157,1.79560665,1250.5,1250.4,3.81180387]
[1672905745788,2.99267015,1250.5,1250.4,3.81180387]
[1672905746628,1.79560665,1250.5,1250.4,6.81180387]
[1672905746842,2.99266144,1250.5,1250.4,6.81180387]
[1672905747059,2.99266144,1250.5,1250.4,9.8045952]
[1672905747582,2.99266144,1250.5,1250.4,7.40999639]
[1672905747787,1.19705479,1250.5,1250.4,7.40999639]
[1672905749581,1.19705479,1250.5,1250.4,10.61779639]
[1672905749996,1.19705479,1250.5,1250.4,7.40999639]
[1672905750203,2.99266144,1250.6,1250.4,7.62500506]
[1672905750419,2.99266144,1250.6,1250.5,9.3016638]
[1672905750624,2.99266144,1250.6,1250.5,6.31029783]
[1672905752409,1.79560665,1250.6,1250.5,6.31029783]
[1672905752723,2.98863566,1250.6,1250.5,6.31029783]
[1672905752937,1.79172613,1250.6,1250.5,6.31029783]
[1672905755039,1.79172613,1250.6,1250.5,6.31019439]
[1672905755358,1.79172613,1250.6,1250.5,2.39309277]
[1672905756622,4.18624732,1250.6,1250.5,4.18817094]
[1672905756936,1.79172613,1250.6,1250.5,4.18817094]
[1672905757353,1.79172613,1250.6,1250.5,4.18813853]
[1672905758730,1.79172613,1250.6,1250.5,2.39309277]
[1672905759040,1.79172613,1250.6,1250.5,3.81019458]
[1672905759255,1.79172613,1250.6,1250.5,2.39309277]
[1672905759779,1.79172613,1250.6,1250.5,4.18820484]
[1672905761776,1.79172613,1250.6,1250.5,2.39309277]
[1672905762829,1.79172613,1250.6,1250.5,3.81019177]
[1672905763346,1.79172613,1250.6,1250.5,3.81020237]
[1672905764715,2.98881935,1250.6,1250.5,3.81020237]
[1672905765029,1.79172613,1250.6,1250.5,3.81020237]
[1672905768288,7.18624732,1250.6,1250.5,4.18816842]
[1672905768495,5.39452119,1250.6,1250.5,1.79507565]
[1672905770600,8.60232119,1250.6,1250.5,1.79507565]
[1672905771439,5.39452119,1250.6,1250.5,1.79507565]
[1672905771650,8.60232119,1250.6,1250.5,1.79507565]
[1672905771859,6.2078,1250.6,1250.5,4.18816842]
[1672905772815,3.0,1250.6,1250.5,4.18816842]
[1672905773024,5.39452119,1250.6,1250.5,1.79507565]
[1672905774072,11.59591802,1250.7,1250.5,4.18816842]
[1672905774279,9.20139683,1250.7,1250.6,1.1965779]
[1672905774489,9.20139683,1250.7,1250.6,4.1965779]
[1672905774798,9.20139683,1250.7,1250.6,1.1965779]
[1672905775338,5.60194698,1250.7,1250.6,1.79507565]
[1672905776593,2.39414698,1250.7,1250.6,1.79507565]
[1672905776912,5.60194698,1250.7,1250.6,1.79507565]
[1672905779328,5.60194698,1250.7,1250.6,4.18816842]
[1672905780598,5.60194698,1250.7,1250.6,1.79507565]
[1672905781002,11.59554381,1250.7,1250.6,1.79507565]
[1672905781212,9.20139683,1250.7,1250.6,1.79507565]
[1672905783426,5.99359683,1250.7,1250.6,1.79507565]
[1672905784265,9.20139683,1250.7,1250.6,1.79507565]
[1672905784580,9.20139683,1250.7,1250.6,2.99307166]
[1672905785209,6.2078,1250.7,1250.6,1.79507565]
[1672905786473,3.2078,1250.7,1250.6,1.79507565]
[1672905786676,6.20502139,1250.7,1250.6,1.79507565]
[1672905786885,3.2078,1250.7,1250.6,1.79507565]
[1672905787415,3.2078,1250.7,1250.6,2.99358013]
[1672905790780,6.59124276,1250.8,1250.6,2.99358013]
[1672905791205,3.2078,1250.7,1250.6,2.99358013]
[1672905792146,3.2078,1250.7,1250.6,1.19850448]
[1672905793405,6.79904276,1250.7,1250.6,1.19850448]
[1672905793617,3.2078,1250.7,1250.6,1.19850448]
[1672905794038,6.79904276,1250.7,1250.6,1.19850448]
[1672905794249,3.2078,1250.7,1250.6,1.19850448]
[1672905794776,6.79904276,1250.7,1250.6,1.19850448]
[1672905798982,3.59124276,1250.7,1250.6,1.19850448]
[1672905799296,6.79904276,1250.7,1250.6,1.19850448]
[1672905800134,6.79904276,1250.7,1250.5,2.99358013]
[1672905800444,6.59124276,1250.6,1250.5,2.99358013]
[1672905800652,6.59124276,1250.6,1250.5,1.19850448]
[1672905802340,6.59124276,1250.6,1250.5,2.99358013]
[1672905803071,9.79904276,1250.6,1250.5,2.99358013]
[1672905803493,9.79904276,1250.6,1250.5,1.19850448]
[1672905807698,9.79904276,1250.6,1250.5,1.19170991]
[1672905808008,9.79904276,1250.6,1250.5,2.98678556]
[1672905808433,9.79904276,1250.6,1250.5,1.19170991]
[1672905812103,9.79904276,1250.6,1250.3,6.80182651]
[1672905812104,9.79904276,1250.6,1250.3,4.18816842]
[1672905812319,6.20157839,1250.4,1250.3,1.79507565]
[1672905812529,6.20157839,1250.4,1250.2,1.79507565]
[1672905812844,7.19165444,1250.3,1250.2,7.18816842]
[1672905813157,7.19165444,1250.3,1250.2,5.39309277]
[1672905813572,1.79639748,1250.3,1250.2,6.8105525]
[1672905814211,2.9931774,1250.3,1250.2,8.6050798]
[1672905814624,1.79639748,1250.3,1250.2,5.6050798]
[1672905815150,1.79639748,1250.3,1250.2,8.6050798]
[1672905815576,5.00419748,1250.3,1250.2,8.6050798]
[1672905815996,6.20076791,1250.3,1250.2,6.21198703]
[1672905817891,5.00419748,1250.3,1250.2,3.21198703]
[1672905818302,6.20067309,1250.3,1250.2,3.21198703]
[1672905819884,2.99287309,1250.3,1250.2,3.21198703]
[1672905820408,5.00419748,1250.3,1250.2,3.21198703]
[1672905823453,6.2007647,1250.3,1250.2,3.21198703]
[1672905823661,5.00419748,1250.3,1250.2,3.21198703]
[1672905824088,1.79639748,1250.3,1250.2,3.21198703]
[1672905824298,5.00419748,1250.3,1250.2,3.21198703]
[1672905825554,1.79639748,1250.3,1250.2,3.21198703]
[1672905825769,5.00419748,1250.3,1250.2,3.21198703]
[1672905826188,1.79639748,1250.3,1250.2,3.21198703]
[1672905826402,5.00419748,1250.3,1250.2,3.21198703]
[1672905826927,1.79639748,1250.3,1250.2,3.21198703]
[1672905827241,5.00419748,1250.3,1250.2,3.21198703]
[1672905827452,5.00419748,1250.3,1250.2,5.6050798]
[1672905827867,7.39945444,1250.3,1250.2,3.21198703]
[1672905828398,5.60305696,1250.3,1250.2,3.21198703]
[1672905828609,5.00357309,1250.3,1250.2,5.6050798]
[1672905829345,5.00357309,1250.3,1250.2,3.8105525]
[1672905829756,6.20071769,1250.3,1250.2,5.22798118]
[1672905830811,5.00357309,1250.3,1250.2,5.82625438]
[1672905831022,5.00357309,1250.3,1250.2,8.22087686]
[1672905831226,7.39883005,1250.3,1250.2,5.22951089]
[1672905832172,5.60305696,1250.3,1250.2,5.82625438]
[1672905832494,5.60305696,1250.3,1250.2,8.22339116]
[1672905832906,5.60305696,1250.3,1250.2,5.82625438]
[1672905833867,8.59683535,1250.3,1250.2,8.22343172]
[1672905834495,8.59683535,1250.3,1250.2,5.23206575]
[1672905836379,5.38903535,1250.3,1250.2,5.23206575]
[1672905836591,8.59683535,1250.3,1250.2,5.23206575]
[1672905836804,8.59984059,1250.3,1250.2,5.23206575]
[1672905837333,5.6060622,1250.3,1250.2,8.22343172]
[1672905837956,5.6060622,1250.3,1250.2,5.82625438]
[1672905838377,5.6060622,1250.3,1250.2,8.22320467]
[1672905839119,5.6060622,1250.3,1250.2,5.82625438]
[1672905840903,7.4047257,1250.3,1250.2,5.82625438]
[1672905841221,5.6060622,1250.3,1250.2,5.82625438]
[1672905841747,7.40472913,1250.3,1250.2,5.82625438]
[1672905843951,5.00646693,1250.3,1250.2,5.82625438]
[1672905844371,7.40472913,1250.3,1250.2,5.82625438]
[1672905844579,5.6060622,1250.3,1250.2,5.82625438]
[1672905844888,5.6060622,1250.3,1250.2,8.22303173]
[1672905847197,2.3982622,1250.3,1250.2,8.22303173]
[1672905847622,5.6060622,1250.3,1250.2,8.22303173]
[1672905848260,8.59984059,1250.3,1250.2,8.22303173]
[1672905848470,5.6060622,1250.3,1250.2,8.22303173]
[1672905850152,2.3982622,1250.3,1250.2,8.22303173]
[1672905850363,5.6060622,1250.3,1250.2,8.22303173]
[1672905850784,2.3982622,1250.3,1250.2,8.22303173]
[1672905851097,5.6060622,1250.3,1250.2,5.82625438]
[1672905851301,2.3982622,1250.3,1250.2,5.82625438]
[1672905852354,5.6060622,1250.3,1250.2,5.82625438]
[1672905852571,6.20157839,1250.3,1250.2,3.81459665]
[1672905852772,6.20157839,1250.3,1250.2,5.23202533]
[1672905853195,3.2078,1250.3,1250.2,2.84759614]
[1672905853406,6.79904276,1250.3,1250.2,2.84759614]
[1672905853615,9.79904276,1250.3,1250.2,2.84759614]
[1672905854144,6.2078,1250.3,1250.2,1.04953335]
[1672905858879,3.0,1250.3,1250.2,1.04953335]
[1672905859086,6.2078,1250.3,1250.2,1.04953335]
[1672905860772,9.20226154,1250.3,1250.2,1.04953335]
[1672905861400,5.99446154,1250.3,1250.2,1.04953335]
[1672905861607,9.20226154,1250.3,1250.2,1.04953335]
[1672905861819,5.99446154,1250.3,1250.2,1.04953335]
[1672905862028,9.20226154,1250.3,1250.2,1.04953335]
[1672905862246,5.99446154,1250.3,1250.2,1.04953335]
[1672905862557,9.20226154,1250.3,1250.2,1.04953335]
[1672905862974,5.99446154,1250.3,1250.2,1.04953335]
[1672905863185,9.20226154,1250.3,1250.2,1.04953335]
[1672905867714,5.99446154,1250.3,1250.2,1.04953335]
[1672905868028,9.20226154,1250.3,1250.2,1.04953335]
[1672905869075,5.99446154,1250.3,1250.2,1.04953335]
[1672905869283,9.20226154,1250.3,1250.2,1.04953335]
[1672905870028,5.99446154,1250.3,1250.2,1.04953335]
[1672905870238,9.20226154,1250.3,1250.2,1.04953335]
[1672905870440,5.99446154,1250.3,1250.2,1.04953335]
[1672905870763,9.20226154,1250.3,1250.2,1.04953335]
[1672905871603,5.99446154,1250.3,1250.2,1.04953335]
[1672905871921,9.20226154,1250.3,1250.2,1.04953335]
[1672905872233,5.99446154,1250.3,1250.2,1.04953335]
[1672905872443,9.20226154,1250.3,1250.2,1.04953335]
[1672905877489,5.99446154,1250.3,1250.2,1.04953335]
[1672905877700,9.20226154,1250.3,1250.2,1.04953335]
[1672905881906,5.99446154,1250.3,1250.2,1.04953335]
[1672905882538,9.20226154,1250.3,1250.2,1.04953335]
[1672905882754,6.20226154,1250.3,1250.2,1.04953335]
[1672905883063,6.20226154,1250.3,1250.2,2.84759614]
[1672905887686,8.59865137,1250.3,1250.2,2.84759614]
[1672905887899,6.20226154,1250.3,1250.2,5.84759614]
[1672905888103,6.20226154,1250.3,1250.2,2.84759614]
[1672905891151,3.2078,1250.3,1250.2,2.84759614]